[Event "*** Titled Tuesday Blitz"]
[Site "Chess.com"]
[Date "2021.04.06"]
[Round "6"]
[White "SF-96"]
[Black "seorobert1971"]
[Result "0-1"]
[WhiteElo "2577"]
[BlackElo "2766"]
[TimeControl "180+1"]
[EndTime "11:08:48 PDT"]
[Termination "seorobert1971 won on time"]

1. Nf3 {[%clk 0:03:00.9]} 1... Nf6 {[%clk 0:02:58.8]} 2. g3 {[%clk 0:03:00]}
2... d5 {[%clk 0:02:58.1]} 3. Bg2 {[%clk 0:03:00.3]} 3... Bf5 {[%clk 0:02:57.3]}
4. O-O {[%clk 0:03:00.7]} 4... c6 {[%clk 0:02:56.3]} 5. c4 {[%clk 0:02:53.8]}
5... e6 {[%clk 0:02:56.2]} 6. d4 {[%clk 0:02:49.7]} 6... Nbd7 {[%clk 0:02:46.8]}
7. Qb3 {[%clk 0:02:46]} 7... Qb6 {[%clk 0:02:45.6]} 8. c5 {[%clk 0:02:39.2]}
8... Qxb3 {[%clk 0:02:43.7]} 9. axb3 {[%clk 0:02:40.1]} 9... a6 {[%clk 0:02:44]}
10. Bf4 {[%clk 0:02:33.6]} 10... Rc8 {[%clk 0:02:41.7]} 11. b4 {[%clk
0:02:25.9]} 11... h6 {[%clk 0:02:41]} 12. h4 {[%clk 0:02:17.6]} 12... Be7 {[%clk
0:02:40.6]} 13. Nbd2 {[%clk 0:02:15.8]} 13... Ne4 {[%clk 0:02:40.4]} 14. Nb3
{[%clk 0:02:10.9]} 14... g5 {[%clk 0:02:35.8]} 15. hxg5 {[%clk 0:02:07.7]} 15...
hxg5 {[%clk 0:02:36.7]} 16. Be3 {[%clk 0:02:08.4]} 16... f6 {[%clk 0:02:33.6]}
17. Na5 {[%clk 0:02:06.7]} 17... Rb8 {[%clk 0:02:33.1]} 18. Nd2 {[%clk
0:02:01.8]} 18... Nxd2 {[%clk 0:02:27.5]} 19. Bxd2 {[%clk 0:02:02.7]} 19... Kf7
{[%clk 0:02:26.4]} 20. Rfe1 {[%clk 0:01:48.2]} 20... Rh7 {[%clk 0:02:18.3]} 21.
f3 {[%clk 0:01:34.7]} 21... e5 {[%clk 0:02:09.5]} 22. g4 {[%clk 0:01:13.2]}
22... Be6 {[%clk 0:02:06.2]} 23. e3 {[%clk 0:01:13.5]} 23... f5 {[%clk
0:01:59.5]} 24. gxf5 {[%clk 0:00:54.9]} 24... Bxf5 {[%clk 0:01:59.2]} 25. Kf2
{[%clk 0:00:55.7]} 25... g4 {[%clk 0:01:55.4]} 26. Rh1 {[%clk 0:00:51.2]} 26...
Rbh8 {[%clk 0:01:51]} 27. Rxh7+ {[%clk 0:00:48.2]} 27... Rxh7 {[%clk 0:01:50.6]}
28. Rh1 {[%clk 0:00:32.2]} 28... Bh4+ {[%clk 0:01:31.4]} 29. Ke2 {[%clk
0:00:29.4]} 29... gxf3+ {[%clk 0:01:30.7]} 30. Bxf3 {[%clk 0:00:30.3]} 30... e4
{[%clk 0:01:28.6]} 31. Bg2 {[%clk 0:00:29.1]} 31... Bg4+ {[%clk 0:01:28.4]} 32.
Kf1 {[%clk 0:00:29.6]} 32... Kg6 {[%clk 0:01:21.2]} 33. Rxh4 {[%clk 0:00:16.3]}
33... Rxh4 {[%clk 0:01:20.5]} 34. Nxb7 {[%clk 0:00:17]} 34... Nf6 {[%clk
0:01:14]} 35. Be1 {[%clk 0:00:15]} 35... Rh7 {[%clk 0:01:10.4]} 36. Nd8 {[%clk
0:00:14.7]} 36... Bf3 {[%clk 0:01:08.3]} 37. Nxc6 {[%clk 0:00:13.3]} 37... Ng4
{[%clk 0:00:57.9]} 38. Ne5+ {[%clk 0:00:09.8]} 38... Nxe5 {[%clk 0:00:55.8]} 39.
dxe5 {[%clk 0:00:10.7]} 39... Kf5 {[%clk 0:00:54.1]} 40. Bg3 {[%clk 0:00:09.2]}
40... Bxg2+ {[%clk 0:00:48.5]} 41. Kxg2 {[%clk 0:00:09.5]} 41... Rb7 {[%clk
0:00:48.9]} 42. Be1 {[%clk 0:00:07]} 42... Kxe5 {[%clk 0:00:47.4]} 43. Bc3+
{[%clk 0:00:07.3]} 43... Kf5 {[%clk 0:00:47]} 44. Kf2 {[%clk 0:00:07.8]} 44...
Kg4 {[%clk 0:00:45.1]} 45. Kg2 {[%clk 0:00:04.5]} 45... Rf7 {[%clk 0:00:41.5]}
46. Be5 {[%clk 0:00:04.3]} 46... Kf5 {[%clk 0:00:40.7]} 47. Bd6 {[%clk
0:00:03.8]} 47... Ke6 {[%clk 0:00:40.5]} 48. Bf4 {[%clk 0:00:03.6]} 48... Kd7
{[%clk 0:00:40.2]} 49. Kf2 {[%clk 0:00:03.6]} 49... Kc6 {[%clk 0:00:40.2]} 50.
Ke2 {[%clk 0:00:03.5]} 50... Kb5 {[%clk 0:00:40.3]} 51. Bd6 {[%clk 0:00:02.6]}
51... Rf6 {[%clk 0:00:31.7]} 0-1

[Event "*** Titled Tuesday Blitz"]
[Site "Chess.com"]
[Date "2021.04.06"]
[Round "6"]
[White "andrewtnb"]
[Black "Chernobay_Artem"]
[Result "1-0"]
[WhiteElo "2371"]
[BlackElo "2573"]
[TimeControl "180+1"]
[EndTime "11:08:48 PDT"]
[Termination "andrewtnb won by resignation"]

1. d4 {[%clk 0:02:54.3]} 1... Nf6 {[%clk 0:02:59.7]} 2. c4 {[%clk 0:02:54]} 2...
g6 {[%clk 0:03:00.2]} 3. Nc3 {[%clk 0:02:53.5]} 3... Bg7 {[%clk 0:03:00.6]} 4.
e4 {[%clk 0:02:53.2]} 4... O-O {[%clk 0:03:01.3]} 5. Nf3 {[%clk 0:02:53.4]} 5...
d6 {[%clk 0:03:02]} 6. Be2 {[%clk 0:02:53.7]} 6... e5 {[%clk 0:03:02.6]} 7. O-O
{[%clk 0:02:54]} 7... Nc6 {[%clk 0:03:03.2]} 8. d5 {[%clk 0:02:53.8]} 8... Ne7
{[%clk 0:03:03.4]} 9. Nh4 {[%clk 0:02:53]} 9... Nd7 {[%clk 0:02:56.2]} 10. g3
{[%clk 0:02:52.7]} 10... f5 {[%clk 0:02:49.5]} 11. exf5 {[%clk 0:02:50.5]} 11...
gxf5 {[%clk 0:02:47.1]} 12. f4 {[%clk 0:02:50]} 12... exf4 {[%clk 0:02:26.2]}
13. Bxf4 {[%clk 0:02:48.2]} 13... Ng6 {[%clk 0:02:24.1]} 14. Nxg6 {[%clk
0:02:46.8]} 14... hxg6 {[%clk 0:02:24]} 15. Qd2 {[%clk 0:02:40.4]} 15... Qf6
{[%clk 0:02:15.2]} 16. Rad1 {[%clk 0:02:35.5]} 16... Nc5 {[%clk 0:02:01.6]} 17.
Bf3 {[%clk 0:02:28.7]} 17... Bd7 {[%clk 0:01:55.4]} 18. Rfe1 {[%clk 0:02:23.2]}
18... Rae8 {[%clk 0:01:54.7]} 19. Bg5 {[%clk 0:02:20.3]} 19... Qd4+ {[%clk
0:01:54.6]} 20. Be3 {[%clk 0:01:55.7]} 20... Qxd2 {[%clk 0:01:29.6]} 21. Rxd2
{[%clk 0:01:56.6]} 21... Rxe3 {[%clk 0:01:25.3]} 22. Rxe3 {[%clk 0:01:56.1]}
22... Bh6 {[%clk 0:01:26]} 23. Rde2 {[%clk 0:01:55.2]} 23... Bxe3+ {[%clk
0:01:26.4]} 24. Rxe3 {[%clk 0:01:56.1]} 24... Kf7 {[%clk 0:01:26.2]} 25. Ne2
{[%clk 0:01:55.1]} 25... a5 {[%clk 0:01:20.4]} 26. h4 {[%clk 0:01:53.6]} 26...
Kf6 {[%clk 0:01:20.5]} 27. Nf4 {[%clk 0:01:51.6]} 27... Re8 {[%clk 0:01:06.2]}
28. Kf2 {[%clk 0:01:49.3]} 28... Na4 {[%clk 0:01:02.8]} 29. b3 {[%clk 0:01:44]}
29... Rxe3 {[%clk 0:00:43.6]} 30. Kxe3 {[%clk 0:01:44.9]} 30... Nc3 {[%clk
0:00:44.3]} 31. a4 {[%clk 0:01:37.9]} 31... Na2 {[%clk 0:00:34.3]} 32. Nd3
{[%clk 0:01:30.7]} 32... b6 {[%clk 0:00:33.5]} 33. Kf4 {[%clk 0:01:12.3]} 33...
Nc3 {[%clk 0:00:32.8]} 34. Ke3 {[%clk 0:01:10.7]} 34... Nb1 {[%clk 0:00:30.2]}
35. Nf4 {[%clk 0:01:05.4]} 35... Nc3 {[%clk 0:00:23.1]} 36. Kd4 {[%clk 0:01:03]}
36... Na2 {[%clk 0:00:21.7]} 37. Nd3 {[%clk 0:01:03.1]} 37... g5 {[%clk
0:00:20.2]} 38. hxg5+ {[%clk 0:00:55.2]} 38... Kxg5 {[%clk 0:00:21.1]} 39. Be2
{[%clk 0:00:53.3]} 39... Be8 {[%clk 0:00:18.1]} 40. Bf3 {[%clk 0:00:50.8]} 40...
Bh5 {[%clk 0:00:15.5]} 41. Bxh5 {[%clk 0:00:50]} 41... Kxh5 {[%clk 0:00:16.4]}
42. Nf4+ {[%clk 0:00:39.3]} 42... Kg4 {[%clk 0:00:16.6]} 43. Ne6 {[%clk
0:00:39.7]} 43... Kxg3 {[%clk 0:00:16.8]} 44. Nxc7 {[%clk 0:00:40]} 44... f4
{[%clk 0:00:17.4]} 45. Ne8 {[%clk 0:00:35.5]} 45... f3 {[%clk 0:00:17.3]} 46.
Nxd6 {[%clk 0:00:36.4]} 46... Kf4 {[%clk 0:00:06.7]} 47. Ne4 {[%clk 0:00:33.9]}
47... Nc3 {[%clk 0:00:02.4]} 48. Kxc3 {[%clk 0:00:16.4]} 48... Kxe4 {[%clk
0:00:01.6]} 49. Kd2 {[%clk 0:00:16.9]} 49... f2 {[%clk 0:00:02.4]} 50. Ke2
{[%clk 0:00:17.1]} 50... Kd4 {[%clk 0:00:02.8]} 51. d6 {[%clk 0:00:16.6]} 51...
Kc5 {[%clk 0:00:03.7]} 52. d7 {[%clk 0:00:16.8]} 1-0

[Event "*** Titled Tuesday Blitz"]
[Site "Chess.com"]
[Date "2021.04.06"]
[Round "6"]
[White "Chopper1905"]
[Black "Witik"]
[Result "1/2-1/2"]
[WhiteElo "2943"]
[BlackElo "2731"]
[TimeControl "180+1"]
[EndTime "11:08:49 PDT"]
[Termination "Game drawn by repetition"]

1. d4 {[%clk 0:03:00.9]} 1... d5 {[%clk 0:02:46.6]} 2. c4 {[%clk 0:02:59.5]}
2... e6 {[%clk 0:02:46.8]} 3. Nc3 {[%clk 0:02:59.2]} 3... c6 {[%clk 0:02:47]} 4.
e3 {[%clk 0:02:56.9]} 4... Bd6 {[%clk 0:02:46.7]} 5. Nf3 {[%clk 0:02:54.2]} 5...
f5 {[%clk 0:02:46.6]} 6. Be2 {[%clk 0:02:50.6]} 6... Nf6 {[%clk 0:02:46.2]} 7.
Ne5 {[%clk 0:02:50.4]} 7... O-O {[%clk 0:02:45.8]} 8. O-O {[%clk 0:02:50.1]}
8... b6 {[%clk 0:02:36.3]} 9. Bd2 {[%clk 0:02:24.1]} 9... Bb7 {[%clk 0:02:34.9]}
10. f4 {[%clk 0:02:22.7]} 10... Nbd7 {[%clk 0:02:31.1]} 11. Be1 {[%clk
0:02:21.2]} 11... Ne4 {[%clk 0:02:15.4]} 12. Nxe4 {[%clk 0:02:18.5]} 12... dxe4
{[%clk 0:01:56.3]} 13. c5 {[%clk 0:01:55.5]} 13... Bc7 {[%clk 0:01:23.1]} 14.
Bc4 {[%clk 0:01:34.6]} 14... Qe7 {[%clk 0:01:23.1]} 15. b4 {[%clk 0:01:32]}
15... Nf6 {[%clk 0:01:18.5]} 16. Bh4 {[%clk 0:01:32]} 16... Qe8 {[%clk
0:01:10.1]} 17. a4 {[%clk 0:01:17.2]} 17... Nd5 {[%clk 0:01:05.3]} 18. Qb3
{[%clk 0:01:17.7]} 18... bxc5 {[%clk 0:00:51.9]} 19. dxc5 {[%clk 0:00:57.3]}
19... Rb8 {[%clk 0:00:37.1]} 20. b5 {[%clk 0:00:50.8]} 20... Bxe5 {[%clk
0:00:28.9]} 21. fxe5 {[%clk 0:00:50.3]} 21... Bc8 {[%clk 0:00:27.6]} 22. Rab1
{[%clk 0:00:39.8]} 22... h6 {[%clk 0:00:22.9]} 23. Be1 {[%clk 0:00:25]} 23...
Bd7 {[%clk 0:00:20.5]} 24. b6 {[%clk 0:00:20.4]} 24... axb6 {[%clk 0:00:11.9]}
25. Bxd5 {[%clk 0:00:20.8]} 25... cxd5 {[%clk 0:00:12.1]} 26. cxb6 {[%clk
0:00:21.2]} 26... Bxa4 {[%clk 0:00:12.3]} 27. Qa3 {[%clk 0:00:21.2]} 27... Bb5
{[%clk 0:00:11.6]} 28. Rf2 {[%clk 0:00:20.3]} 28... Bd3 {[%clk 0:00:10.6]} 29.
Rb3 {[%clk 0:00:18.4]} 29... Qc6 {[%clk 0:00:10.2]} 30. Bb4 {[%clk 0:00:17.1]}
30... Rfc8 {[%clk 0:00:09.7]} 31. h3 {[%clk 0:00:07]} 31... Qc1+ {[%clk
0:00:09.7]} 32. Kh2 {[%clk 0:00:06.4]} 32... Qxe3 {[%clk 0:00:08.9]} 33. Bd6
{[%clk 0:00:02]} 33... Qxf2 {[%clk 0:00:07.5]} 34. b7 {[%clk 0:00:02.4]} 34...
Re8 {[%clk 0:00:04]} 35. Bxb8 {[%clk 0:00:02.1]} 35... Rxb8 {[%clk 0:00:04.7]}
36. Qd6 {[%clk 0:00:02.1]} 36... Qf4+ {[%clk 0:00:04.4]} 37. Kh1 {[%clk
0:00:02]} 37... Qc1+ {[%clk 0:00:04.6]} 38. Kh2 {[%clk 0:00:02.6]} 38... Qf4+
{[%clk 0:00:05]} 39. Kh1 {[%clk 0:00:03.1]} 39... Rxb7 {[%clk 0:00:05.6]} 40.
Rxb7 {[%clk 0:00:02.9]} 40... Qf1+ {[%clk 0:00:05.6]} 41. Kh2 {[%clk 0:00:03.4]}
41... Qf4+ {[%clk 0:00:06]} 42. Kh1 {[%clk 0:00:03.6]} 42... Qf1+ {[%clk
0:00:03.9]} 43. Kh2 {[%clk 0:00:04.1]} 43... Qf4+ {[%clk 0:00:04.2]} 44. Kg1
{[%clk 0:00:03.3]} 44... Qe3+ {[%clk 0:00:04]} 45. Kh1 {[%clk 0:00:03.6]} 45...
Qc1+ {[%clk 0:00:04.3]} 46. Kh2 {[%clk 0:00:04.1]} 46... Qf4+ {[%clk 0:00:04.9]}
1/2-1/2

[Event "*** Titled Tuesday Blitz"]
[Site "Chess.com"]
[Date "2021.04.06"]
[Round "6"]
[White "GMSrinath"]
[Black "Legendinunknown"]
[Result "1-0"]
[WhiteElo "2815"]
[BlackElo "2607"]
[TimeControl "180+1"]
[EndTime "11:08:49 PDT"]
[Termination "GMSrinath won by resignation"]

1. Nf3 {[%clk 0:03:00.9]} 1... Nf6 {[%clk 0:02:58.3]} 2. c4 {[%clk 0:02:59.8]}
2... g6 {[%clk 0:02:58.4]} 3. b3 {[%clk 0:03:00.1]} 3... Bg7 {[%clk 0:02:56.9]}
4. Bb2 {[%clk 0:03:00.6]} 4... O-O {[%clk 0:02:57.6]} 5. g3 {[%clk 0:03:00.9]}
5... d6 {[%clk 0:02:58.3]} 6. Bg2 {[%clk 0:03:01.3]} 6... Nbd7 {[%clk 0:02:59]}
7. O-O {[%clk 0:03:01.5]} 7... e5 {[%clk 0:02:59.6]} 8. Nc3 {[%clk 0:03:01.6]}
8... Qe7 {[%clk 0:02:57.8]} 9. d4 {[%clk 0:03:00.7]} 9... c6 {[%clk 0:02:56.2]}
10. Ba3 {[%clk 0:02:51]} 10... Rd8 {[%clk 0:02:32.1]} 11. Qc2 {[%clk 0:02:38.5]}
11... c5 {[%clk 0:02:05.5]} 12. dxc5 {[%clk 0:02:27.1]} 12... dxc5 {[%clk
0:02:06.4]} 13. Rad1 {[%clk 0:02:24.3]} 13... Rb8 {[%clk 0:01:57.7]} 14. Ng5
{[%clk 0:02:02.8]} 14... h6 {[%clk 0:01:49.5]} 15. Nge4 {[%clk 0:01:58.2]} 15...
Nxe4 {[%clk 0:01:37.9]} 16. Nd5 {[%clk 0:01:51.2]} 16... Qf8 {[%clk 0:01:26.3]}
17. Bxe4 {[%clk 0:01:47.5]} 17... b6 {[%clk 0:01:24.9]} 18. Rd2 {[%clk
0:01:16.4]} 18... f5 {[%clk 0:00:54.7]} 19. Bg2 {[%clk 0:01:16.1]} 19... Nf6
{[%clk 0:00:43]} 20. Rfd1 {[%clk 0:01:15.8]} 20... Be6 {[%clk 0:00:40.3]} 21.
Nc7 {[%clk 0:01:05.5]} 21... Bf7 {[%clk 0:00:25]} 22. Bb2 {[%clk 0:00:53]} 22...
e4 {[%clk 0:00:22.6]} 23. f3 {[%clk 0:00:53.4]} 23... Qe7 {[%clk 0:00:20.4]} 24.
Nb5 {[%clk 0:00:48.6]} 24... a6 {[%clk 0:00:18.7]} 25. Rxd8+ {[%clk 0:00:36.2]}
25... Rxd8 {[%clk 0:00:19.6]} 26. Rxd8+ {[%clk 0:00:36.7]} 26... Qxd8 {[%clk
0:00:20]} 27. Nc3 {[%clk 0:00:37.6]} 27... exf3 {[%clk 0:00:19.5]} 28. exf3
{[%clk 0:00:38.5]} 28... Ne8 {[%clk 0:00:19.5]} 29. f4 {[%clk 0:00:37.4]} 29...
Nc7 {[%clk 0:00:19.3]} 30. Na4 {[%clk 0:00:30.4]} 30... Bxb2 {[%clk 0:00:19]}
31. Qxb2 {[%clk 0:00:31.3]} 31... Qd1+ {[%clk 0:00:18.6]} 32. Bf1 {[%clk
0:00:31.3]} 32... Ne6 {[%clk 0:00:19]} 33. Nxb6 {[%clk 0:00:19.6]} 33... Nd4
{[%clk 0:00:18.8]} 34. Qf2 {[%clk 0:00:19]} 34... Be8 {[%clk 0:00:18.1]} 35. Nd5
{[%clk 0:00:18.4]} 35... Kf7 {[%clk 0:00:18.2]} 36. Qe3 {[%clk 0:00:17.4]} 36...
Ne6 {[%clk 0:00:17.8]} 37. Kf2 {[%clk 0:00:11.6]} 37... Bc6 {[%clk 0:00:17.5]}
38. Bg2 {[%clk 0:00:09.1]} 38... g5 {[%clk 0:00:17.8]} 39. Bf3 {[%clk
0:00:09.2]} 39... Qc2+ {[%clk 0:00:17.3]} 40. Qe2 {[%clk 0:00:07.8]} 40... Qxe2+
{[%clk 0:00:14.6]} 41. Kxe2 {[%clk 0:00:08.7]} 41... Nd4+ {[%clk 0:00:13.9]} 42.
Kf2 {[%clk 0:00:08.6]} 42... Nxf3 {[%clk 0:00:14.8]} 43. Kxf3 {[%clk 0:00:09.5]}
43... Ke6 {[%clk 0:00:15.2]} 44. fxg5 {[%clk 0:00:08.6]} 44... hxg5 {[%clk
0:00:16.1]} 45. h4 {[%clk 0:00:09.2]} 45... gxh4 {[%clk 0:00:15.5]} 46. gxh4
{[%clk 0:00:10.1]} 46... Ke5 {[%clk 0:00:15.9]} 47. Ke3 {[%clk 0:00:08.2]} 47...
Be8 {[%clk 0:00:14.9]} 48. Nf4 {[%clk 0:00:08.1]} 48... Bf7 {[%clk 0:00:15.2]}
49. Nd3+ {[%clk 0:00:08.4]} 49... Kd6 {[%clk 0:00:15.2]} 50. Kf4 {[%clk
0:00:08.8]} 50... Be6 {[%clk 0:00:15]} 51. h5 {[%clk 0:00:08.5]} 51... Ke7
{[%clk 0:00:15.3]} 52. Kg5 {[%clk 0:00:09]} 52... Kf7 {[%clk 0:00:16.2]} 53.
Nxc5 {[%clk 0:00:09.4]} 53... Bd7 {[%clk 0:00:16.9]} 54. Nxd7 {[%clk 0:00:09.5]}
1-0

[Event "*** Titled Tuesday Blitz"]
[Site "Chess.com"]
[Date "2021.04.06"]
[Round "6"]
[White "Klavdia_Nik"]
[Black "annamaja"]
[Result "0-1"]
[WhiteElo "2031"]
[BlackElo "2265"]
[TimeControl "180+1"]
[EndTime "11:08:49 PDT"]
[Termination "annamaja won on time"]

1. Nf3 {[%clk 0:02:59.5]} 1... Nf6 {[%clk 0:02:58.9]} 2. c4 {[%clk 0:02:59.5]}
2... e6 {[%clk 0:02:58.1]} 3. b3 {[%clk 0:02:59.5]} 3... c5 {[%clk 0:02:53.6]}
4. Bb2 {[%clk 0:02:58]} 4... Be7 {[%clk 0:02:52]} 5. g3 {[%clk 0:02:56.1]} 5...
O-O {[%clk 0:02:51.4]} 6. Bg2 {[%clk 0:02:56.7]} 6... Nc6 {[%clk 0:02:50.7]} 7.
O-O {[%clk 0:02:54.9]} 7... d5 {[%clk 0:02:48.3]} 8. cxd5 {[%clk 0:02:46.2]}
8... exd5 {[%clk 0:02:48]} 9. d4 {[%clk 0:02:43.9]} 9... b6 {[%clk 0:02:41]} 10.
dxc5 {[%clk 0:02:38.2]} 10... bxc5 {[%clk 0:02:40.4]} 11. e3 {[%clk 0:02:37]}
11... Bf5 {[%clk 0:02:28.1]} 12. Nc3 {[%clk 0:02:27.6]} 12... Rc8 {[%clk
0:02:18]} 13. Rc1 {[%clk 0:02:14.3]} 13... d4 {[%clk 0:02:12.5]} 14. exd4 {[%clk
0:02:06.3]} 14... Nxd4 {[%clk 0:01:57.3]} 15. Ne5 {[%clk 0:01:58.2]} 15... Re8
{[%clk 0:01:43.7]} 16. h3 {[%clk 0:01:40.4]} 16... Bf8 {[%clk 0:01:29.6]} 17.
Nc4 {[%clk 0:01:32.7]} 17... Qd7 {[%clk 0:01:21]} 18. Kh2 {[%clk 0:01:26.2]}
18... h6 {[%clk 0:01:11.2]} 19. Ne3 {[%clk 0:01:16.6]} 19... Bg6 {[%clk
0:01:06.4]} 20. Ne2 {[%clk 0:01:13]} 20... Rcd8 {[%clk 0:01:00.6]} 21. Nf4
{[%clk 0:00:47.5]} 21... Bh7 {[%clk 0:00:50.5]} 22. Nc4 {[%clk 0:00:41.8]} 22...
Qf5 {[%clk 0:00:39.4]} 23. Bxd4 {[%clk 0:00:30.8]} 23... Rxd4 {[%clk 0:00:32.9]}
24. Qf3 {[%clk 0:00:24.3]} 24... g5 {[%clk 0:00:23.7]} 25. Ne2 {[%clk
0:00:22.4]} 25... Qxf3 {[%clk 0:00:17.1]} 26. Bxf3 {[%clk 0:00:22.4]} 26... Rdd8
{[%clk 0:00:12.9]} 27. Nc3 {[%clk 0:00:20.5]} 27... Bd3 {[%clk 0:00:10.4]} 28.
Rfe1 {[%clk 0:00:19.3]} 28... Bxc4 {[%clk 0:00:08.5]} 29. bxc4 {[%clk
0:00:18.2]} 29... Rxe1 {[%clk 0:00:08.7]} 30. Rxe1 {[%clk 0:00:17.6]} 30... Rd3
{[%clk 0:00:09]} 31. Nd5 {[%clk 0:00:17.4]} 31... Rxf3 {[%clk 0:00:08.7]} 32.
Nxf6+ {[%clk 0:00:15.5]} 32... Rxf6 {[%clk 0:00:09.6]} 33. Kg2 {[%clk
0:00:15.1]} 33... Ra6 {[%clk 0:00:09.1]} 34. Re2 {[%clk 0:00:14.2]} 34... Ra4
{[%clk 0:00:09.3]} 35. Rc2 {[%clk 0:00:14.4]} 35... Bg7 {[%clk 0:00:09.6]} 36.
g4 {[%clk 0:00:13.3]} 36... Rb4 {[%clk 0:00:09.6]} 37. Kf3 {[%clk 0:00:13.1]}
37... Rb2 {[%clk 0:00:09.8]} 38. Rc1 {[%clk 0:00:10.7]} 38... Rxa2 {[%clk
0:00:09.9]} 39. Rb1 {[%clk 0:00:10.1]} 39... Bd4 {[%clk 0:00:09.9]} 40. Ke4
{[%clk 0:00:09.3]} 40... Rxf2 {[%clk 0:00:09.6]} 41. Rb8+ {[%clk 0:00:08.1]}
41... Kg7 {[%clk 0:00:09.5]} 42. Rb7 {[%clk 0:00:08.6]} 42... Rf4+ {[%clk
0:00:09.1]} 43. Kd5 {[%clk 0:00:08]} 43... Rf3 {[%clk 0:00:09.7]} 44. Rxa7
{[%clk 0:00:07.5]} 44... Rxh3 {[%clk 0:00:10.2]} 45. Re7 {[%clk 0:00:05.8]}
45... Rf3 {[%clk 0:00:09.3]} 0-1

[Event "*** Titled Tuesday Blitz"]
[Site "Chess.com"]
[Date "2021.04.06"]
[Round "6"]
[White "PavelChernomordik"]
[Black "powermove"]
[Result "1-0"]
[WhiteElo "2322"]
[BlackElo "1672"]
[TimeControl "180+1"]
[EndTime "11:08:50 PDT"]
[Termination "PavelChernomordik won on time"]

1. e4 {[%clk 0:03:00.9]} 1... e5 {[%clk 0:02:59.3]} 2. Nf3 {[%clk 0:03:00.3]}
2... Nc6 {[%clk 0:02:59.1]} 3. Bc4 {[%clk 0:02:59.8]} 3... Be7 {[%clk
0:02:57.7]} 4. d4 {[%clk 0:02:58.2]} 4... d6 {[%clk 0:02:56.1]} 5. dxe5 {[%clk
0:02:56.2]} 5... dxe5 {[%clk 0:02:56.2]} 6. Bd5 {[%clk 0:02:55.9]} 6... Nf6
{[%clk 0:02:38.1]} 7. Bxc6+ {[%clk 0:02:54.3]} 7... bxc6 {[%clk 0:02:38.3]} 8.
Qxd8+ {[%clk 0:02:53.6]} 8... Bxd8 {[%clk 0:02:38]} 9. Nxe5 {[%clk 0:02:52.5]}
9... Nxe4 {[%clk 0:02:32.2]} 10. Nxc6 {[%clk 0:02:50.5]} 10... Bf6 {[%clk
0:02:29.8]} 11. O-O {[%clk 0:02:46.1]} 11... O-O {[%clk 0:02:28.3]} 12. Re1
{[%clk 0:02:40.7]} 12... Bb7 {[%clk 0:02:12.8]} 13. Na5 {[%clk 0:02:38.1]} 13...
Nc5 {[%clk 0:01:57.8]} 14. Nxb7 {[%clk 0:02:29.2]} 14... Nxb7 {[%clk 0:01:56.9]}
15. c3 {[%clk 0:02:28]} 15... Nc5 {[%clk 0:01:54.8]} 16. Be3 {[%clk 0:02:21.8]}
16... Na4 {[%clk 0:01:46.5]} 17. Re2 {[%clk 0:02:11.7]} 17... Rfd8 {[%clk
0:01:33.7]} 18. Na3 {[%clk 0:02:10.6]} 18... Rab8 {[%clk 0:01:32.4]} 19. Nc4
{[%clk 0:02:09.2]} 19... a6 {[%clk 0:01:22.2]} 20. g4 {[%clk 0:02:06.8]} 20...
h6 {[%clk 0:01:20.9]} 21. Kg2 {[%clk 0:02:04.4]} 21... Rd5 {[%clk 0:01:08.1]}
22. Bf4 {[%clk 0:01:48.5]} 22... Rb7 {[%clk 0:00:59.7]} 23. Rae1 {[%clk
0:01:27.4]} 23... Kh7 {[%clk 0:00:57]} 24. Rc2 {[%clk 0:01:15.2]} 24... Nc5
{[%clk 0:00:49.6]} 25. Na5 {[%clk 0:01:12.9]} 25... Rb5 {[%clk 0:00:47.6]} 26.
b4 {[%clk 0:01:06.7]} 26... Nd3 {[%clk 0:00:44.1]} 27. Re4 {[%clk 0:01:06.1]}
27... Rd7 {[%clk 0:00:29.2]} 28. Bg3 {[%clk 0:01:00.7]} 28... c5 {[%clk
0:00:25.7]} 29. a3 {[%clk 0:01:00]} 29... cxb4 {[%clk 0:00:24.2]} 30. cxb4
{[%clk 0:00:57.2]} 30... Bb2 {[%clk 0:00:22.7]} 31. Nc4 {[%clk 0:00:51.7]} 31...
Ba1 {[%clk 0:00:17.1]} 32. Rd2 {[%clk 0:00:46.5]} 32... Rg5 {[%clk 0:00:11]} 33.
h4 {[%clk 0:00:39.7]} 33... Rgd5 {[%clk 0:00:08.8]} 34. Kf1 {[%clk 0:00:35.9]}
34... Nxb4 {[%clk 0:00:06.5]} 35. Rde2 {[%clk 0:00:19.5]} 35... Rd1+ {[%clk
0:00:05.8]} 36. Kg2 {[%clk 0:00:18.6]} 36... Nd3 {[%clk 0:00:05.6]} 37. Re7
{[%clk 0:00:14.9]} 37... Rxe7 {[%clk 0:00:03.6]} 38. Rxe7 {[%clk 0:00:14.3]}
38... Ne1+ {[%clk 0:00:03.8]} 39. Kh3 {[%clk 0:00:13.4]} 39... Nf3 {[%clk
0:00:03.2]} 40. Kg2 {[%clk 0:00:12.7]} 40... Nd4 {[%clk 0:00:01.7]} 41. Rxf7
{[%clk 0:00:11.4]} 41... Ne2 {[%clk 0:00:01.1]} 42. Be5 {[%clk 0:00:09.9]} 1-0